[Event "*** Titled Tuesday Blitz"]
[Site "Chess.com"]
[Date "2019.12.03"]
[Round "5"]
[White "Noam_Vitenberg"]
[Black "Denis_Palkovich"]
[Result "0-1"]
[WhiteElo "2340"]
[BlackElo "2249"]
[TimeControl "180+2"]
[EndTime "14:06:51 PST"]
[Termination "Denis_Palkovich won by resignation"]

1. c4 {[%clk 0:03:00.9]} 1... c6 {[%clk 0:02:56.4]} 2. e4 {[%clk 0:02:59.1]}
2... d6 {[%clk 0:02:55.3]} 3. d4 {[%clk 0:02:58.4]} 3... Nd7 {[%clk 0:02:56.8]}
4. Nf3 {[%clk 0:02:57.7]} 4... h6 {[%clk 0:02:55.1]} 5. h4 {[%clk 0:02:57]} 5...
e5 {[%clk 0:02:50.7]} 6. h5 {[%clk 0:02:49.8]} 6... Ngf6 {[%clk 0:02:49.2]} 7.
Nc3 {[%clk 0:02:49.2]} 7... Qc7 {[%clk 0:02:46.2]} 8. Be2 {[%clk 0:02:49]} 8...
Be7 {[%clk 0:02:43.1]} 9. Nh4 {[%clk 0:02:42]} 9... exd4 {[%clk 0:02:29.2]} 10.
Qxd4 {[%clk 0:02:43.9]} 10... Ne5 {[%clk 0:02:10.9]} 11. Bf4 {[%clk 0:02:31.5]}
11... Be6 {[%clk 0:01:58.1]} 12. Nf5 {[%clk 0:02:30.2]} 12... Bxf5 {[%clk
0:01:58.7]} 13. exf5 {[%clk 0:02:32.1]} 13... b6 {[%clk 0:01:27.8]} 14. O-O-O
{[%clk 0:02:16.3]} 14... O-O-O {[%clk 0:01:28.1]} 15. f3 {[%clk 0:02:14.6]}
15... Nfd7 {[%clk 0:01:08.5]} 16. Ne4 {[%clk 0:02:11]} 16... Nf6 {[%clk
0:01:00.6]} 17. Kb1 {[%clk 0:01:55.6]} 17... Nxe4 {[%clk 0:01:00]} 18. fxe4
{[%clk 0:01:57.5]} 18... Bf6 {[%clk 0:00:59.7]} 19. Qd2 {[%clk 0:01:55.6]} 19...
c5 {[%clk 0:00:43.4]} 20. Qd5 {[%clk 0:01:50.5]} 20... Qc6 {[%clk 0:00:41.3]}
21. Qxc6+ {[%clk 0:01:46.9]} 21... Nxc6 {[%clk 0:00:42.7]} 22. Rxd6 {[%clk
0:01:44.4]} 22... Nd4 {[%clk 0:00:21.4]} 23. Bg4 {[%clk 0:01:33.7]} 23... Rxd6
{[%clk 0:00:18.5]} 24. Bxd6 {[%clk 0:01:34.1]} 24... Re8 {[%clk 0:00:20.2]} 25.
e5 {[%clk 0:01:25.1]} 25... Bxe5 {[%clk 0:00:19.4]} 26. Re1 {[%clk 0:00:57]}
26... f6 {[%clk 0:00:10.2]} 27. Bxe5 {[%clk 0:00:57.4]} 27... fxe5 {[%clk
0:00:10.1]} 28. f6+ {[%clk 0:00:58.1]} 28... Kd8 {[%clk 0:00:11.2]} 29. fxg7
{[%clk 0:00:56.8]} 29... Rg8 {[%clk 0:00:11.3]} 30. Rxe5 {[%clk 0:00:56.4]}
30... Rxg7 {[%clk 0:00:12.7]} 31. Bf3 {[%clk 0:00:50.4]} 31... Rf7 {[%clk
0:00:09]} 32. Re3 {[%clk 0:00:34.2]} 32... Re7 {[%clk 0:00:08.8]} 33. Rxe7
{[%clk 0:00:34.2]} 33... Kxe7 {[%clk 0:00:10.7]} 34. Kc1 {[%clk 0:00:34.6]}
34... Kf6 {[%clk 0:00:09.6]} 35. Kd2 {[%clk 0:00:35.6]} 35... Nxf3+ {[%clk
0:00:10.6]} 36. gxf3 {[%clk 0:00:36.1]} 36... Kg5 {[%clk 0:00:12.5]} 37. Ke3
{[%clk 0:00:24.3]} 37... Kxh5 {[%clk 0:00:13.6]} 38. Kf4 {[%clk 0:00:25.5]}
38... Kg6 {[%clk 0:00:14.3]} 39. Kg4 {[%clk 0:00:26.4]} 39... h5+ {[%clk
0:00:13.4]} 40. Kf4 {[%clk 0:00:27.5]} 40... Kf6 {[%clk 0:00:14.2]} 41. a3
{[%clk 0:00:22.2]} 41... a6 {[%clk 0:00:14.8]} 42. b4 {[%clk 0:00:21.8]} 42...
a5 {[%clk 0:00:13.2]} 43. bxa5 {[%clk 0:00:12.9]} 43... bxa5 {[%clk 0:00:13.7]}
44. a4 {[%clk 0:00:08]} 44... Kg6 {[%clk 0:00:14.2]} 45. Ke4 {[%clk 0:00:03.2]}
45... h4 {[%clk 0:00:13.6]} 46. Kf4 {[%clk 0:00:03.2]} 46... Kh5 {[%clk
0:00:14.4]} 47. Ke3 {[%clk 0:00:04.5]} 47... Kg5 {[%clk 0:00:14.3]} 48. Kf2
{[%clk 0:00:04.5]} 48... Kf4 {[%clk 0:00:15.1]} 49. Kg2 {[%clk 0:00:05.6]} 49...
h3+ {[%clk 0:00:16.1]} 50. Kxh3 {[%clk 0:00:05.7]} 50... Kxf3 {[%clk 0:00:18]}
51. Kh4 {[%clk 0:00:07]} 51... Ke4 {[%clk 0:00:18.9]} 52. Kg5 {[%clk 0:00:07.8]}
52... Kd4 {[%clk 0:00:20.6]} 53. Kf4 {[%clk 0:00:09.7]} 53... Kxc4 {[%clk
0:00:22.2]} 54. Ke3 {[%clk 0:00:11.6]} 54... Kb3 {[%clk 0:00:23.2]} 0-1

[Event "*** Titled Tuesday Blitz"]
[Site "Chess.com"]
[Date "2019.12.03"]
[Round "5"]
[White "Niklas2304"]
[Black "Sajkochess"]
[Result "0-1"]
[WhiteElo "2360"]
[BlackElo "2257"]
[TimeControl "180+2"]
[EndTime "14:07:04 PST"]
[Termination "Sajkochess won by resignation"]

1. e4 {[%clk 0:03:01.9]} 1... c5 {[%clk 0:03:00.1]} 2. Nf3 {[%clk 0:03:01.7]}
2... e6 {[%clk 0:03:01.2]} 3. d4 {[%clk 0:02:56]} 3... cxd4 {[%clk 0:03:03.1]}
4. Nxd4 {[%clk 0:02:56.6]} 4... Nc6 {[%clk 0:03:04.7]} 5. Be2 {[%clk 0:02:54.8]}
5... Nf6 {[%clk 0:03:02.8]} 6. Nc3 {[%clk 0:02:53.2]} 6... Qc7 {[%clk
0:03:03.9]} 7. O-O {[%clk 0:02:53.2]} 7... a6 {[%clk 0:03:04.9]} 8. Kh1 {[%clk
0:02:49.8]} 8... Nxd4 {[%clk 0:03:04.4]} 9. Qxd4 {[%clk 0:02:49.7]} 9... Bc5
{[%clk 0:03:05.9]} 10. Qd3 {[%clk 0:02:44.8]} 10... b5 {[%clk 0:03:07.5]} 11. f4
{[%clk 0:02:42.1]} 11... Bb7 {[%clk 0:03:05.5]} 12. e5 {[%clk 0:02:40.9]} 12...
Nd5 {[%clk 0:03:02.3]} 13. Nxd5 {[%clk 0:01:39.4]} 13... Bxd5 {[%clk 0:03:03.8]}
14. Qg3 {[%clk 0:01:10.7]} 14... g6 {[%clk 0:02:39.6]} 15. c3 {[%clk 0:01:05.3]}
15... h5 {[%clk 0:02:37.4]} 16. h3 {[%clk 0:00:46.9]} 16... Qb7 {[%clk
0:02:18.2]} 17. Bf3 {[%clk 0:00:44.9]} 17... Bxf3 {[%clk 0:02:16.9]} 18. Qxf3
{[%clk 0:00:42.4]} 18... Qxf3 {[%clk 0:02:16.6]} 19. Rxf3 {[%clk 0:00:44.3]}
19... d5 {[%clk 0:02:09.1]} 20. exd6 {[%clk 0:00:26.2]} 20... Bxd6 {[%clk
0:02:09.5]} 21. a4 {[%clk 0:00:26.4]} 21... Ke7 {[%clk 0:02:05.3]} 22. Be3
{[%clk 0:00:24.7]} 22... Rhb8 {[%clk 0:01:53.7]} 23. axb5 {[%clk 0:00:21.8]}
23... axb5 {[%clk 0:01:54]} 24. Rff1 {[%clk 0:00:23.2]} 24... b4 {[%clk
0:01:37.2]} 25. c4 {[%clk 0:00:23.1]} 25... b3 {[%clk 0:01:37.9]} 26. c5 {[%clk
0:00:23.7]} 26... Bc7 {[%clk 0:01:34]} 27. g3 {[%clk 0:00:24.4]} 27... Ra2
{[%clk 0:01:31.5]} 28. Bd4 {[%clk 0:00:20.6]} 28... Rba8 {[%clk 0:01:20.5]} 29.
Rac1 {[%clk 0:00:20.8]} 29... R8a4 {[%clk 0:01:18]} 30. Rfd1 {[%clk 0:00:21.1]}
30... f6 {[%clk 0:01:04.9]} 31. Kg2 {[%clk 0:00:19.4]} 31... e5 {[%clk
0:01:05.2]} 32. fxe5 {[%clk 0:00:20.2]} 32... fxe5 {[%clk 0:01:06.2]} 33. Bc3
{[%clk 0:00:20.8]} 33... Ke6 {[%clk 0:00:59.8]} 34. Rd3 {[%clk 0:00:08.6]} 34...
Rc4 {[%clk 0:00:59.6]} 35. Bd2 {[%clk 0:00:09.6]} 35... Rd4 {[%clk 0:00:46.9]}
36. Rxd4 {[%clk 0:00:06.5]} 36... exd4 {[%clk 0:00:47.6]} 37. Re1+ {[%clk
0:00:05.4]} 37... Kd5 {[%clk 0:00:44]} 38. Bc1 {[%clk 0:00:07.3]} 38... Ba5
{[%clk 0:00:40.2]} 39. Re7 {[%clk 0:00:06.3]} 39... Bc3 {[%clk 0:00:34]} 40. Kf3
{[%clk 0:00:06.2]} 40... Bxb2 {[%clk 0:00:34]} 41. Bf4 {[%clk 0:00:05.7]} 41...
Kxc5 {[%clk 0:00:28.3]} 42. Ke4 {[%clk 0:00:06.5]} 42... Bc3 {[%clk 0:00:27]}
43. Rc7+ {[%clk 0:00:07.1]} 43... Kb6 {[%clk 0:00:27.2]} 44. Rc8 {[%clk
0:00:07]} 44... b2 {[%clk 0:00:24]} 45. Rb8+ {[%clk 0:00:07.6]} 45... Kc5 {[%clk
0:00:21.1]} 46. Kd3 {[%clk 0:00:09.5]} 46... Bb4 {[%clk 0:00:10.7]} 47. Kc2
{[%clk 0:00:09.1]} 47... Bc3 {[%clk 0:00:07]} 48. Rc8+ {[%clk 0:00:08.9]} 48...
Kd5 {[%clk 0:00:07.5]} 49. Rd8+ {[%clk 0:00:09.9]} 49... Ke4 {[%clk 0:00:08.6]}
50. Rd6 {[%clk 0:00:08.1]} 50... d3+ {[%clk 0:00:08]} 51. Kxc3 {[%clk
0:00:08.1]} 51... b1=Q {[%clk 0:00:07.7]} 52. Re6+ {[%clk 0:00:08.8]} 52... Kf3
{[%clk 0:00:08.5]} 53. Re3+ {[%clk 0:00:09.7]} 53... Kg2 {[%clk 0:00:09.7]} 54.
Rxd3 {[%clk 0:00:09.1]} 54... Ra3+ {[%clk 0:00:10.4]} 0-1

[Event "*** Titled Tuesday Blitz"]
[Site "Chess.com"]
[Date "2019.12.03"]
[Round "5"]
[White "Alexander_Donchenko"]
[Black "Gennady_Kozlov"]
[Result "1/2-1/2"]
[WhiteElo "2735"]
[BlackElo "2554"]
[TimeControl "180+2"]
[EndTime "14:07:07 PST"]
[Termination "Game drawn by repetition"]

1. e4 {[%clk 0:03:01.9]} 1... e6 {[%clk 0:02:59.6]} 2. d4 {[%clk 0:03:02.7]}
2... d5 {[%clk 0:03:01.1]} 3. Nc3 {[%clk 0:03:03.9]} 3... Nf6 {[%clk 0:03:01.4]}
4. Bg5 {[%clk 0:03:02.5]} 4... Be7 {[%clk 0:03:02.3]} 5. e5 {[%clk 0:02:59.7]}
5... Nfd7 {[%clk 0:03:03.8]} 6. Bxe7 {[%clk 0:03:00.5]} 6... Qxe7 {[%clk
0:03:04.5]} 7. Nf3 {[%clk 0:03:01.2]} 7... a6 {[%clk 0:03:05.6]} 8. Ne2 {[%clk
0:02:58.4]} 8... c5 {[%clk 0:03:06.9]} 9. c3 {[%clk 0:02:59.6]} 9... Nc6 {[%clk
0:03:08.2]} 10. Ng3 {[%clk 0:02:58.2]} 10... f6 {[%clk 0:03:08.2]} 11. exf6
{[%clk 0:02:57.4]} 11... Qxf6 {[%clk 0:03:09.3]} 12. Bd3 {[%clk 0:02:54]} 12...
O-O {[%clk 0:03:05.9]} 13. O-O {[%clk 0:02:52.7]} 13... e5 {[%clk 0:03:06.9]}
14. dxe5 {[%clk 0:01:56.4]} 14... Ndxe5 {[%clk 0:03:08.8]} 15. Be2 {[%clk
0:01:57.5]} 15... Be6 {[%clk 0:03:05.9]} 16. Nxe5 {[%clk 0:01:51.6]} 16... Qxe5
{[%clk 0:03:01.2]} 17. Bg4 {[%clk 0:01:47.9]} 17... Bxg4 {[%clk 0:02:58.8]} 18.
Qxg4 {[%clk 0:01:49.8]} 18... Rae8 {[%clk 0:02:59.2]} 19. Rad1 {[%clk
0:01:47.1]} 19... d4 {[%clk 0:02:58.8]} 20. h3 {[%clk 0:01:37.5]} 20... Rf4
{[%clk 0:02:52]} 21. Qd7 {[%clk 0:01:30.8]} 21... Rf7 {[%clk 0:02:51.8]} 22. Qg4
{[%clk 0:01:31.9]} 22... dxc3 {[%clk 0:02:51.4]} 23. bxc3 {[%clk 0:01:26.3]}
23... Qxc3 {[%clk 0:02:51.5]} 24. Ne4 {[%clk 0:01:26.7]} 24... Qe5 {[%clk
0:02:36.9]} 25. Nd6 {[%clk 0:01:24.7]} 25... Rf4 {[%clk 0:02:31.3]} 26. Qg3
{[%clk 0:01:05.4]} 26... Nd4 {[%clk 0:02:15.8]} 27. Rde1 {[%clk 0:00:51.4]}
27... Qxe1 {[%clk 0:02:12.1]} 28. Rxe1 {[%clk 0:00:52.4]} 28... Rxe1+ {[%clk
0:02:09.5]} 29. Kh2 {[%clk 0:00:53.9]} 29... Rf6 {[%clk 0:01:54.9]} 30. f3
{[%clk 0:00:19.6]} 30... Re2 {[%clk 0:01:52.1]} 31. Kh1 {[%clk 0:00:19.6]} 31...
Nf5 {[%clk 0:00:34.4]} 32. Nxf5 {[%clk 0:00:19.8]} 32... Rxf5 {[%clk 0:00:36.3]}
33. Qb8+ {[%clk 0:00:20.8]} 33... Rf8 {[%clk 0:00:37.7]} 34. Qxb7 {[%clk
0:00:21.2]} 34... Re1+ {[%clk 0:00:26.6]} 35. Kh2 {[%clk 0:00:22.1]} 35... Ree8
{[%clk 0:00:20.6]} 36. Qxa6 {[%clk 0:00:22.3]} 36... Rc8 {[%clk 0:00:22.1]} 37.
Qc4+ {[%clk 0:00:22.8]} 37... Kh8 {[%clk 0:00:23.7]} 38. a4 {[%clk 0:00:24.3]}
38... Rf6 {[%clk 0:00:23.5]} 39. a5 {[%clk 0:00:23.8]} 39... h6 {[%clk
0:00:24.7]} 40. Qg4 {[%clk 0:00:21.5]} 40... Ra8 {[%clk 0:00:25]} 41. Qh5 {[%clk
0:00:11.2]} 41... Rxa5 {[%clk 0:00:24]} 42. Qe8+ {[%clk 0:00:12.4]} 42... Kh7
{[%clk 0:00:25.6]} 43. Qe4+ {[%clk 0:00:14.1]} 43... Kg8 {[%clk 0:00:24]} 44.
Qd5+ {[%clk 0:00:15.2]} 44... Kh7 {[%clk 0:00:23.8]} 45. Qe4+ {[%clk 0:00:16.2]}
45... Rg6 {[%clk 0:00:20.5]} 46. h4 {[%clk 0:00:17.3]} 46... h5 {[%clk
0:00:21.4]} 47. Qf5 {[%clk 0:00:18.1]} 47... Kh6 {[%clk 0:00:22.5]} 48. Qf4+
{[%clk 0:00:19.1]} 48... Kh7 {[%clk 0:00:23.7]} 49. Qf5 {[%clk 0:00:20.8]} 49...
Kh6 {[%clk 0:00:24.6]} 50. g4 {[%clk 0:00:09.4]} 50... Ra2+ {[%clk 0:00:24.3]}
51. Kg3 {[%clk 0:00:08.5]} 51... hxg4 {[%clk 0:00:21]} 52. fxg4 {[%clk
0:00:06.3]} 52... Ra3+ {[%clk 0:00:21.3]} 53. Kh2 {[%clk 0:00:07.9]} 53... Ra2+
{[%clk 0:00:20.5]} 54. Kh3 {[%clk 0:00:09.4]} 54... Ra3+ {[%clk 0:00:21.1]} 55.
Kg2 {[%clk 0:00:10.2]} 55... Ra2+ {[%clk 0:00:19.4]} 56. Kh3 {[%clk 0:00:06.9]}
56... Ra3+ {[%clk 0:00:20.4]} 57. Kh2 {[%clk 0:00:08]} 57... Ra2+ {[%clk
0:00:21.4]} 58. Kh3 {[%clk 0:00:09.5]} 1/2-1/2

[Event "*** Titled Tuesday Blitz"]
[Site "Chess.com"]
[Date "2019.12.03"]
[Round "5"]
[White "earling8018"]
[Black "Misticpikachu"]
[Result "1-0"]
[WhiteElo "1934"]
[BlackElo "2269"]
[TimeControl "180+2"]
[EndTime "14:07:09 PST"]
[Termination "earling8018 won by checkmate"]

1. c4 {[%clk 0:03:01.9]} 1... e6 {[%clk 0:02:57.7]} 2. Nf3 {[%clk 0:02:55.6]}
2... d5 {[%clk 0:02:59.6]} 3. d4 {[%clk 0:02:56.5]} 3... Nf6 {[%clk 0:02:58.3]}
4. g3 {[%clk 0:02:56.9]} 4... Be7 {[%clk 0:02:56.5]} 5. Bg2 {[%clk 0:02:57.9]}
5... O-O {[%clk 0:02:45.5]} 6. O-O {[%clk 0:02:58.5]} 6... dxc4 {[%clk
0:02:46.2]} 7. Qc2 {[%clk 0:02:58.6]} 7... a6 {[%clk 0:02:47]} 8. a4 {[%clk
0:02:58.2]} 8... Bd7 {[%clk 0:02:43.7]} 9. Qxc4 {[%clk 0:02:59]} 9... Bc6 {[%clk
0:02:41.1]} 10. Nc3 {[%clk 0:02:44.9]} 10... b5 {[%clk 0:02:41.2]} 11. Qd3
{[%clk 0:02:34.5]} 11... b4 {[%clk 0:02:31.4]} 12. Nb1 {[%clk 0:02:32.1]} 12...
Be4 {[%clk 0:02:30.6]} 13. Qd1 {[%clk 0:02:27.6]} 13... c5 {[%clk 0:02:20.8]}
14. dxc5 {[%clk 0:02:27.6]} 14... Bxc5 {[%clk 0:02:21]} 15. Qxd8 {[%clk
0:02:24]} 15... Rxd8 {[%clk 0:02:21.4]} 16. Nbd2 {[%clk 0:02:25.4]} 16... Bd5
{[%clk 0:02:01.2]} 17. Ne5 {[%clk 0:02:06.9]} 17... Bxg2 {[%clk 0:01:58.2]} 18.
Kxg2 {[%clk 0:02:08.4]} 18... Nbd7 {[%clk 0:01:56.9]} 19. Nxd7 {[%clk
0:01:57.4]} 19... Rxd7 {[%clk 0:01:50.9]} 20. Nb3 {[%clk 0:01:52.9]} 20... Bb6
{[%clk 0:01:46.3]} 21. a5 {[%clk 0:01:47.5]} 21... Ba7 {[%clk 0:01:44.7]} 22.
Bf4 {[%clk 0:01:21]} 22... Nd5 {[%clk 0:01:38.8]} 23. Rfd1 {[%clk 0:01:12.3]}
23... Kf8 {[%clk 0:01:26.1]} 24. Kf3 {[%clk 0:01:01.5]} 24... Rad8 {[%clk
0:01:21.9]} 25. Rac1 {[%clk 0:00:56.8]} 25... Ke7 {[%clk 0:00:57.2]} 26. Rc6
{[%clk 0:00:51.6]} 26... Nxf4 {[%clk 0:00:54.7]} 27. Rxd7+ {[%clk 0:00:39.5]}
27... Kxd7 {[%clk 0:00:37.8]} 28. Rxa6 {[%clk 0:00:40.4]} 28... Bxf2 {[%clk
0:00:35]} 29. gxf4 {[%clk 0:00:21.8]} 29... Bg1 {[%clk 0:00:32]} 30. e3 {[%clk
0:00:16.4]} 30... Rc8 {[%clk 0:00:22.1]} 31. Rb6 {[%clk 0:00:13.7]} 31... Rc2
{[%clk 0:00:09.5]} 32. Rxb4 {[%clk 0:00:13]} 32... Kc6 {[%clk 0:00:07.2]} 33.
Nd4+ {[%clk 0:00:10.5]} 33... Kc5 {[%clk 0:00:07.4]} 34. Nxc2 {[%clk 0:00:11.3]}
34... e5 {[%clk 0:00:03.1]} 35. fxe5 {[%clk 0:00:10.5]} 35... f5 {[%clk
0:00:04.9]} 36. exf6 {[%clk 0:00:10.2]} 36... gxf6 {[%clk 0:00:06.8]} 37. a6
{[%clk 0:00:11.4]} 37... Bxh2 {[%clk 0:00:06.8]} 38. a7 {[%clk 0:00:12.1]} 38...
Kd5 {[%clk 0:00:03.8]} 39. a8=Q+ {[%clk 0:00:12.3]} 39... Ke5 {[%clk 0:00:05.7]}
40. Qe8+ {[%clk 0:00:11.6]} 40... Kf5 {[%clk 0:00:07.6]} 41. Qe4+ {[%clk
0:00:09.8]} 41... Kg5 {[%clk 0:00:08.4]} 42. Qg4+ {[%clk 0:00:08.9]} 42... Kh6
{[%clk 0:00:09.3]} 43. Qh4+ {[%clk 0:00:09.4]} 43... Kg6 {[%clk 0:00:09.4]} 44.
Qxh2 {[%clk 0:00:09.4]} 44... h5 {[%clk 0:00:08]} 45. Qd6 {[%clk 0:00:08.1]}
45... Kg5 {[%clk 0:00:07.3]} 46. Rf4 {[%clk 0:00:08.5]} 46... f5 {[%clk
0:00:09.2]} 47. Qe5 {[%clk 0:00:08.2]} 47... Kg6 {[%clk 0:00:06.6]} 48. Qxf5+
{[%clk 0:00:08.8]} 48... Kg7 {[%clk 0:00:08.5]} 49. Qf6+ {[%clk 0:00:10.1]}
49... Kh7 {[%clk 0:00:09.1]} 50. Qf7+ {[%clk 0:00:10.5]} 50... Kh6 {[%clk
0:00:10.2]} 51. Qg8 {[%clk 0:00:06.1]} 51... h4 {[%clk 0:00:09.9]} 52. Rxh4#
{[%clk 0:00:05.9]} 1-0

[Event "*** Titled Tuesday Blitz"]
[Site "Chess.com"]
[Date "2019.12.03"]
[Round "5"]
[White "Marcin"]
[Black "x-3738459472"]
[Result "1/2-1/2"]
[WhiteElo "2369"]
[BlackElo "2544"]
[TimeControl "180+2"]
[EndTime "14:07:19 PST"]
[Termination "Game drawn by agreement"]

1. d4 {[%clk 0:03:01.9]} 1... d5 {[%clk 0:02:33.4]} 2. c4 {[%clk 0:03:00.2]}
2... c6 {[%clk 0:02:34.1]} 3. Nf3 {[%clk 0:03:01]} 3... Nf6 {[%clk 0:02:34.6]}
4. e3 {[%clk 0:03:02.2]} 4... Bf5 {[%clk 0:02:34.6]} 5. Nc3 {[%clk 0:03:02.2]}
5... e6 {[%clk 0:02:36]} 6. Nh4 {[%clk 0:02:51.8]} 6... Be4 {[%clk 0:02:34.9]}
7. f3 {[%clk 0:02:49.2]} 7... Bg6 {[%clk 0:02:27.2]} 8. g3 {[%clk 0:02:50.3]}
8... Bd6 {[%clk 0:02:26.4]} 9. Nxg6 {[%clk 0:02:47]} 9... hxg6 {[%clk
0:02:27.2]} 10. Bg2 {[%clk 0:02:45]} 10... dxc4 {[%clk 0:02:22.4]} 11. Kf2
{[%clk 0:02:44.5]} 11... Nd5 {[%clk 0:02:21.7]} 12. e4 {[%clk 0:02:43.2]} 12...
Nxc3 {[%clk 0:02:22.9]} 13. bxc3 {[%clk 0:02:45.1]} 13... Qc7 {[%clk 0:02:22.9]}
14. e5 {[%clk 0:02:45.9]} 14... Be7 {[%clk 0:02:22.3]} 15. Qe2 {[%clk
0:02:46.6]} 15... b5 {[%clk 0:02:22.6]} 16. f4 {[%clk 0:02:47.8]} 16... Nd7
{[%clk 0:02:23.1]} 17. h4 {[%clk 0:02:44.5]} 17... Nb6 {[%clk 0:02:23.5]} 18. h5
{[%clk 0:02:22.4]} 18... gxh5 {[%clk 0:02:20.9]} 19. Rxh5 {[%clk 0:02:24.3]}
19... Rxh5 {[%clk 0:02:21.3]} 20. Qxh5 {[%clk 0:02:26.2]} 20... Nd5 {[%clk
0:02:08.6]} 21. Bd2 {[%clk 0:02:26.7]} 21... b4 {[%clk 0:02:01.3]} 22. Rc1
{[%clk 0:02:13.2]} 22... bxc3 {[%clk 0:02:00]} 23. Bxc3 {[%clk 0:02:14.4]} 23...
Nxc3 {[%clk 0:02:01.1]} 24. Rxc3 {[%clk 0:02:15.4]} 24... Qb6 {[%clk 0:01:58.8]}
25. Rxc4 {[%clk 0:02:10.9]} 25... Rc8 {[%clk 0:01:47.1]} 26. Qe2 {[%clk
0:02:06.1]} 26... Kf8 {[%clk 0:01:44.4]} 27. Qc2 {[%clk 0:02:06.2]} 27... Kg8
{[%clk 0:01:43.7]} 28. Bxc6 {[%clk 0:02:01.5]} 28... Rd8 {[%clk 0:01:41]} 29.
Ke3 {[%clk 0:01:55.6]} 29... Rxd4 {[%clk 0:01:35]} 30. Rxd4 {[%clk 0:01:54.1]}
30... Bc5 {[%clk 0:01:36.4]} 31. Be4 {[%clk 0:01:53.5]} 31... Bxd4+ {[%clk
0:01:37.2]} 32. Kf3 {[%clk 0:01:54.7]} 32... g6 {[%clk 0:01:36]} 33. Kg4 {[%clk
0:01:43.3]} 33... Kg7 {[%clk 0:01:35.8]} 34. Qc8 {[%clk 0:01:40.1]} 34... Qb5
{[%clk 0:01:33.6]} 35. Qd8 {[%clk 0:01:35]} 35... Bxe5 {[%clk 0:01:31.8]} 36.
fxe5 {[%clk 0:01:32.8]} 36... Qxe5 {[%clk 0:01:33.7]} 37. Kf3 {[%clk 0:01:33.5]}
37... Qh5+ {[%clk 0:01:28.7]} 38. Ke3 {[%clk 0:01:25]} 38... e5 {[%clk
0:01:29.9]} 39. Qe7 {[%clk 0:01:17.7]} 39... Qh6+ {[%clk 0:01:21]} 40. Kd3
{[%clk 0:01:14.2]} 40... Qh5 {[%clk 0:01:21.7]} 41. Qxa7 {[%clk 0:01:03.8]}
41... Qd1+ {[%clk 0:01:20.1]} 42. Kc4 {[%clk 0:00:55.7]} 42... Qe2+ {[%clk
0:01:15]} 43. Kd5 {[%clk 0:00:50.6]} 43... Kh6 {[%clk 0:01:01.2]} 44. Qa3 {[%clk
0:00:22.9]} 44... f5 {[%clk 0:00:59.5]} 45. Bf3 {[%clk 0:00:21.7]} 45... Qb5+
{[%clk 0:00:56]} 46. Ke6 {[%clk 0:00:21.4]} 46... Qe8+ {[%clk 0:00:51.6]} 47.
Kf6 {[%clk 0:00:21.2]} 47... e4 {[%clk 0:00:51.1]} 48. Qe3+ {[%clk 0:00:19.3]}
48... Kh7 {[%clk 0:00:52]} 49. Be2 {[%clk 0:00:18.7]} 49... Qf8+ {[%clk
0:00:51.5]} 50. Ke5 {[%clk 0:00:15.9]} 50... Qe7+ {[%clk 0:00:52]} 51. Kd5
{[%clk 0:00:17.2]} 51... Qd7+ {[%clk 0:00:53]} 52. Kc4 {[%clk 0:00:18.3]} 52...
Qa4+ {[%clk 0:00:53.5]} 53. Kc3 {[%clk 0:00:18.6]} 53... Qa3+ {[%clk 0:00:53]}
54. Kd2 {[%clk 0:00:19.9]} 54... Qxa2+ {[%clk 0:00:54.1]} 55. Ke1 {[%clk
0:00:21.4]} 55... Qa1+ {[%clk 0:00:51.5]} 56. Kf2 {[%clk 0:00:22.7]} 56... Qe5
{[%clk 0:00:52.7]} 57. Kg2 {[%clk 0:00:23.8]} 57... Qf6 {[%clk 0:00:51.6]} 58.
Qa7+ {[%clk 0:00:23.1]} 58... Kh6 {[%clk 0:00:51.2]} 59. Qe3+ {[%clk 0:00:25]}
59... Kh7 {[%clk 0:00:50.1]} 60. Kh3 {[%clk 0:00:25.9]} 60... g5 {[%clk
0:00:50.2]} 61. Bc4 {[%clk 0:00:25.3]} 61... Kh6 {[%clk 0:00:47.8]} 62. Qa7
{[%clk 0:00:23.2]} 62... f4 {[%clk 0:00:43.3]} 63. Qa6 {[%clk 0:00:15.7]} 63...
Qxa6 {[%clk 0:00:41.9]} 64. Bxa6 {[%clk 0:00:17.6]} 64... fxg3 {[%clk
0:00:27.8]} 65. Kxg3 {[%clk 0:00:19.5]} 1/2-1/2